Cogmind - Beta 14 @@@ ROGUE MODE // 2024.08.12 @ 13:32:37 Player: APerTAS Result: Core destroyed Performance ------------- Evolutions (1) 500 Regions Visited (4) 800 Robots Destroyed (10) 50 Value Destroyed (120) 120 Prototype IDs (5) 100 Alien Tech Used (0) 0 Bonus (560) 560 TOTAL SCORE: 2130 Bonus ------- Met Imprinter 300 Was Imprinted 300 Friendly Fire -40 Cogmind --------- Core Integrity 0/400 Matter 192/300 Energy 100/100 System Corruption 3% Temperature Cool (0) Movement Core (50) Location -7/Zion Parts ------- > --- POWER (1) -------- (None) > --- PROPULSION (2) --- (None) > --- UTILITY (2) ------ (None) > --- WEAPON (4) ------- (None) > --- INVENTORY (5) ---- VTOL Module Rocket Array Peak State ------------ > --- POWER ------------ (None) > --- PROPULSION ------- (None) > --- UTILITY ---------- Experimental Optical Array Experimental Targeting Computer > --- WEAPON ----------- Heavy Missile Launcher Phasing Sabre > --- INVENTORY -------- VTOL Module Heavy Rocket Launcher Rocket Array [Rating: 25] Favorites ----------- Power None Propulsion VTOL Module Flight Unit VTOL Module Utility Experimental Optical Array Processor Experimental Optical Array Hackware Experimental Hacking Suite Weapon Heavy Missile Launcher Launcher Heavy Missile Launcher Slashing Weapon Phasing Sabre Build | -11 -10 -9 -9 -7 ------- Run | Yrd Mat Mat Min Zio Slots Evolved 2 | . . 2 . . Power . | . . . . . Propulsion . | . . . . . Utility . | . . . . . Weapon 2 | . . 2 . . Parts Attached 12 | . 1 . . 11 Power . | . . . . . Engine . | . . . . . Core . | . . . . . Reactor . | . . . . . Propulsion 1 | . . . . 1 Treads . | . . . . . Leg . | . . . . . Wheel . | . . . . . Hover . | . . . . . Flight 1 | . . . . 1 Utility 4 | . . . . 4 Device . | . . . . . Storage . | . . . . . Processor 3 | . . . . 3 Hackware 1 | . . . . 1 Protection . | . . . . . Artifact . | . . . . . Weapon 7 | . 1 . . 6 Energy Gun . | . . . . . Energy Cannon . | . . . . . Ballistic Gun . | . . . . . Ballistic Cannon . | . . . . . Launcher 5 | . 1 . . 4 Special Weapon . | . . . . . Impact Weapon . | . . . . . Slashing Weapon 2 | . . . . 2 Piercing Weapon . | . . . . . Special Melee Weapon . | . . . . . Unidentified Prototypes 5 | . . . . 5 Parts Lost 3 | . . . 1 2 Power . | . . . . . Propulsion . | . . . . . Utility . | . . . . . Weapon 3 | . . . 1 2 Highest Loss Streak 2 | . . . 1 2 To Critical Strikes . | . . . . . Average Slot Usage (%) 27 | . 9 11 . 29 Flight 1 | . . . . 1 Processor 16 | . . . . 17 Launcher 8 | . 9 11 . 8 Slashing Weapon 1 | . . . . 1 Peak Build Rating 25 | . 1 1 1 25 Average Rating 15 | . . 1 . 16 On Entrance . | . . 1 1 . Naked Turns 128 | . 17 . 44 67 Heaviest Build 11 | . 3 3 . 11 Greatest Support 4 | 3 3 3 3 4 Greatest Overweight (x) 3 | . . . . 3 Average Overweight (x) . | . . . . 1 Largest Inventory Capacity 5 | 5 5 5 5 5 Average Capacity 5 | 5 5 5 5 5 Most Carried 4 | . . . . 4 Average Carried 3 | . . . . 3 Final Capacity 5 | 5 5 5 5 5 Final Carried 2 | . . . . 2 Class Distribution -------------------- 100% | Mutant Dominant Class ---------------- Mutant | -10/Materials Mutant | -9/Materials Mutant | -9/Mines Mutant | -7/Zion Resources | -11 -10 -9 -9 -7 ----------- Run | Yrd Mat Mat Min Zio Matter Collected 280 | 76 56 34 10 104 Remotely . | . . . . . Salvage Created 54 | . 4 16 34 . Parts 17 | . 2 8 7 . Haulers Intercepted . | . . . . . Recyclers Shooed . | . . . . . Parts Field Recycled . | . . . . . Retrieved Matter . | . . . . . Parts Self-Destructed . | . . . . . Prevented . | . . . . . Kills | -11 -10 -9 -9 -7 ------- Run | Yrd Mat Mat Min Zio Combat Hostiles Destroyed 10 | . 3 3 4 . AOE 10 | . 3 3 4 . Classes Destroyed 1 | . 1 . . . Swarmer 10 | . 3 3 4 . Best Kill Streak 4 | . 3 3 4 . Combat Bots Only 4 | . 3 3 4 . Max Kills in Single Turn 3 | . 2 3 2 . Gunslinging . | . . . . . Exploded 3 | . 2 3 2 . Melee . | . . . . . Uniques/NPCs Destroyed . | . . . . . Combat | -11 -10 -9 -9 -7 -------- Run | Yrd Mat Mat Min Zio Hostile Shots Fired 55 | . 3 4 7 41 Missed 21 | . . 3 3 15 Damage Taken 644 | . 26 35 83 500 Core 413 | . 9 25 50 329 Absorbed by Shields . | . . . . . Regen/Repaired (Parts) 3 | . . . . 3 Core Remaining (%) 98 | 100 96 . . . Volleys Fired 8 | . 2 1 3 2 Largest 1 | . 1 1 1 1 Hottest 39 | . 30 30 30 39 Shots Fired 8 | . 2 1 3 2 Gun . | . . . . . Cannon . | . . . . . Launcher 8 | . 2 1 3 2 Special . | . . . . . Kinetic . | . . . . . Thermal . | . . . . . Explosive 8 | . 2 1 3 2 Electromagnetic . | . . . . . Robot Hit Streak 3 | . . . 3 . Robot Miss Streak 3 | . 2 3 . . Penetration Max . | . . . . . Secondary Targets . | . . . . . Shots Hit Robots 3 | . . . 3 . Core Hits 13 | . 3 3 4 3 Critical Kills . | . . . . . Critical Parts Destroyed . | . . . . . Critical Strikes . | . . . . . Melee Attacks 3 | . . . . 3 Impact . | . . . . . Slashing 3 | . . . . 3 Piercing . | . . . . . Sneak Attacks . | . . . . . Combat Hostiles . | . . . . . Follow-up Attacks . | . . . . . Damage Inflicted 648 | . 183 136 196 133 Guns . | . . . . . Cannons . | . . . . . Explosions 627 | . 183 133 196 115 Melee . | . . . . . Ramming 21 | . . 3 . 18 Kinetic . | . . . . . Thermal . | . . . . . Explosive 627 | . 183 133 196 115 Electromagnetic . | . . . . . Impact . | . . . . . Slashing . | . . . . . Piercing . | . . . . . Highest Corruption 3 | . . . . 3 Average Corruption 1 | . . . . 1 Corruption Purged . | . . . . . Corruption Blocked . | . . . . . Overload Shots . | . . . . . Overflow Damage . | . . . . . Projectiles . | . . . . . Explosions . | . . . . . Melee . | . . . . . Knockbacks . | . . . . . Impact . | . . . . . Kinetic . | . . . . . Secondary . | . . . . . Self-Inflicted Damage 139 | . . 30 47 62 Shots 5 | . . 1 3 1 Rammed 1 | . . 1 . . Targets Rammed 1 | . . 1 . . Kicked . | . . . . . Crushed . | . . . . . Highest Temperature 11 | . . . . 11 Average Temperature 6 | . . . . 6 Received Heat Transfer 96 | . . . 9 87 Siege Activations . | . . . . . Robots Corrupted . | . . . . . Combat Hostiles . | . . . . . Parts Fried . | . . . . . Impact Corruptions . | . . . . . Robots Melted . | . . . . . Combat Hostiles . | . . . . . Parts Melted . | . . . . . Heat Transferred . | . . . . . Parts Sabotaged . | . . . . . Parts Stolen . | . . . . . Parts Stripped . | . . . . . Power Chain Reactions . | . . . . . Alert | -11 -10 -9 -9 -7 ------- Run | Yrd Mat Mat Min Zio Peak Influence 199 | . 110 140 199 . Initial 54 | . . 46 54 . Average 92 | . 19 115 190 . Maximum Alert Level . | . . . . . Low Security (%) 100 | 100 100 100 100 . Level 1 . | . . . . . Level 2 . | . . . . . Level 3 . | . . . . . Level 4 . | . . . . . Level 5 . | . . . . . High Security . | . . . . . Max Security . | . . . . . Squads Dispatched . | . . . . . Investigation . | . . . . . Extermination . | . . . . . Reinforcement . | . . . . . Assault . | . . . . . Garrison . | . . . . . Intercept . | . . . . . Searches Triggered . | . . . . . Construction Impeded . | . . . . . Haulers Reinforced . | . . . . . Active Scanning Responses . | . . . . . Cargo Convoy Interrupts . | . . . . . Stealth | -11 -10 -9 -9 -7 --------- Run | Yrd Mat Mat Min Zio Distress Signals . | . . . . . Communications Jammed . | . . . . . Distress Signals . | . . . . . Times Spotted 26 | . 5 4 5 12 Peak Tracking Total 11 | . 4 4 3 11 Tactical Retreats . | . . . . . Traps | -11 -10 -9 -9 -7 ------- Run | Yrd Mat Mat Min Zio Traps Triggered . | . . . . . Indirectly . | . . . . . Trap Hack Attempts . | . . . . . Triggered . | . . . . . Disarmed . | . . . . . Reprogrammed . | . . . . . Reused . | . . . . . Traps Extracted . | . . . . . Installed . | . . . . . Triggered . | . . . . . Machines | -11 -10 -9 -9 -7 ---------- Run | Yrd Mat Mat Min Zio Machines Disabled 3 | . . 1 1 1 Max in Single Turn 1 | . . 1 1 1 Machines Repaired . | . . . . . Machines Dismantled . | . . . . . Machines Sabotaged . | . . . . . Overloaded Fab Kills . | . . . . . Hacking | -11 -10 -9 -9 -7 --------- Run | Yrd Mat Mat Min Zio Machines Accessed . | . . . . . Terminals . | . . . . . Fabricators . | . . . . . Repair Stations . | . . . . . Recycling Units . | . . . . . Scanalyzers . | . . . . . Garrison Access . | . . . . . Total Hacks . | . . . . . Successful . | . . . . . Failed . | . . . . . Catastrophic . | . . . . . Database Lockouts . | . . . . . Manual . | . . . . . Terminals . | . . . . . Fabricators . | . . . . . Repair Stations . | . . . . . Recycling Units . | . . . . . Scanalyzers . | . . . . . Garrison Access . | . . . . . Terminal Hacks . | . . . . . Fabricator Hacks . | . . . . . Repair Station Hacks . | . . . . . Recycling Unit Hacks . | . . . . . Scanalyzer . | . . . . . Garrison Access Hacks . | . . . . . Unauthorized Hacks . | . . . . . Terminals . | . . . . . Fabricators . | . . . . . Repair Stations . | . . . . . Recycling Units . | . . . . . Scanalyzers . | . . . . . Garrison Access . | . . . . . Data Cores Recovered . | . . . . . Used . | . . . . . Hacking Detections . | . . . . . Full Trace Events . | . . . . . Feedback Events . | . . . . . Feedback Blocked . | . . . . . Robot Schematics Acquired 3 | . . . . 3 Robots Built . | . . . . . Authchips . | . . . . . Time . | . . . . . Total Robot Build Rating . | . . . . . Part Schematics Acquired 15 | . . . . 15 Parts Built . | . . . . . Authchips . | . . . . . Time . | . . . . . Total Part Build Rating . | . . . . . Parts Repaired . | . . . . . Time . | . . . . . Parts Recycled . | . . . . . Recycled Matter . | . . . . . Retrieved Matter . | . . . . . Retrieved Components . | . . . . . Parts Scanalyzed . | . . . . . Part Schematics Acquired . | . . . . . Parts Damaged . | . . . . . Bothacking | -11 -10 -9 -9 -7 ------------ Run | Yrd Mat Mat Min Zio Used RIF Installer . | . . . . . Robots Hacked . | . . . . . Non-combat . | . . . . . Combat . | . . . . . Robot Hacks Applied . | . . . . . Relay Couplers Released . | . . . . . Fabnet Peak Effective % . | . . . . . Robots Rewired . | . . . . . Allies Hacked . | . . . . . Hacks Repelled . | . . . . . Allies | -11 -10 -9 -9 -7 -------- Run | Yrd Mat Mat Min Zio Total Allies 8 | . . . . 8 Largest Group 8 | . . . . 8 Highest-Rated Group 240 | . . . . 240 Highest-Rated Ally 40 | . . . . 40 Total Orders . | . . . . . Ally Attacks . | . . . . . Total Damage . | . . . . . Kills . | . . . . . Allies Corrupted . | . . . . . Allies Melted . | . . . . . Intel | -11 -10 -9 -9 -7 ------- Run | Yrd Mat Mat Min Zio Robot Analysis Total . | . . . . . Derelict Logs Recovered 1 | . . . . 1 Drone Launches . | . . . . . Drone Recoveries . | . . . . . Exploration | -11 -10 -9 -9 -7 ------------- Run | Yrd Mat Mat Min Zio Turns Passed 2436 | 14 64 54 48 2256 Spaces Moved 2039 | 28 116 101 83 1711 Core 1414 | 28 116 101 83 1086 Treads . | . . . . . Legs . | . . . . . Wheels . | . . . . . Hover . | . . . . . Flight 625 | . . . . 625 Fastest Speed 35 | 50 50 50 50 35 Average Speed 89 | 50 50 50 50 97 Slowest Speed 200 | 50 50 50 50 200 Overloaded Moves . | . . . . . Propulsion Burnouts . | . . . . . Robots Hopped 1 | . . . . 1 Cave-ins Triggered . | . . . . . Exploration Rate (%) 33 | 3 28 17 25 93 Regions Visited 4 Branch Regions 2 Pre-discovered Areas . | . . . . . Known Exits Taken . | . . . . . Unknown Exits Taken 4 | 1 1 1 1 . Scrap Searched 4 | . . . . 4 Spaces Dug 14 | . . . . 14 Terrain Destroyed 64 | . 13 9 23 19 Melee . | . . . . . Projectile . | . . . . . AOE 64 | . 13 9 23 19 Terrain Rammed 3 | . . . . 3 Walls Destroyed . | . . . . . Machines Disabled . | . . . . . Actions | -11 -10 -9 -9 -7 --------- Run | Yrd Mat Mat Min Zio Total 2619 | 27 118 102 85 2287 Wait 553 | . . . . 553 Move 2033 | 27 115 100 82 1709 Hop 1 | . . . . 1 Pick Up 1 | . . . . 1 Fast Attach 9 | . 1 . . 8 Attach 2 | . . . . 2 Detach 3 | . . . . 3 Swap 1 | . . . . 1 Drop 2 | . . . . 2 Fire 8 | . 2 1 3 2 Melee 3 | . . . . 3 Ram 3 | . . 1 . 2 Kick . | . . . . . Crush . | . . . . . Escape Stasis . | . . . . . Rewire . | . . . . . Trap . | . . . . . Miscellaneous . | . . . . . Route ------- -11/Scrapyard -10/Materials -9/Materials -9/Mines -7/Zion (discovered 1 exit: [*Pro]) History --------- Turn | Location | Event 3 | -11/Scrapyard | Discovered new exit (range 15) 15 | -11/Scrapyard | Entered Materials 74 | -10/Materials | Discovered new exit (range 11) 79 | -10/Materials | Entered another Materials area 79 | -9/Materials | Evolved 2 slots: Weapon x2 125 | -9/Materials | Discovered new exit (range 11) 133 | -9/Materials | Entered Mines 172 | -9/Mines | A Derelict revealed a hidden shortcut to a safe place 181 | -9/Mines | Entered Zion 217 | -7/Zion | Discovered new exit (range 13) 305 | -7/Zion | Build established: Mutant 382 | -7/Zion | Given the Hacking Drone Bay 396 | -7/Zion | Learned location of 1 exit from Lower Caves 568 | -7/Zion | Visited the Megawrench Repair Shop 568 | -7/Zion | Megawrench repaired 1 part 590 | -7/Zion | Found Prototype Launcher 590 | -7/Zion | Identified Rocket Array 637 | -7/Zion | Found Prototype Hackware 637 | -7/Zion | Identified Exp. Hacking Suite 640 | -7/Zion | Found Prototype Processor 640 | -7/Zion | Identified Exp. Terrain Scan Processor 650 | -7/Zion | Found Prototype Processor 650 | -7/Zion | Identified Exp. Targeting Computer 882 | -7/Zion | Gained Derelict followers 1715 | -7/Zion | Met Imprinter 1741 | -7/Zion | Imprinted 1744 | -7/Zion | Declared Zion's savior 2422 | -7/Zion | Attacked by Zionites 2432 | -7/Zion | Core integrity fell below 50% 2435 | -7/Zion | Released all parts (3) 2437 | -7/Zion | Core integrity fell below 20% 2437 | -7/Zion | Core destroyed Last Messages --------------- 02421_ Deep Containment System disabled. 02422_ PUBLIC SERVICE ANNOUNCEMENT: Zion is under attack! Defend our home! 02422_ VF-LSG(M) suffers critical hit (Burn). 02426_ Hvy. Missile Launcher destroyed. DZ-JCZ(z) bursts out of the Twisted Machinery. UZ-6UK(z) bursts out of the Twisted Machinery. 02430_ UZ-6UK(z) pulls a Mak. Spear out of the Twisted Machinery. 02431_ DZ-JCZ(z) pulls a Mak. Laser out of the Twisted Machinery. 02435_ Hvy. Rocket Launcher destroyed. 02435_ Released Exp. Targeting Computer. 02435_ Released Exp. Optical Array. 02435_ Released Phasing Sabre. 02435_ Slammed into Reinforced Barrier. 02435_ Destabilizing: Core damaged (-8). 02436_ Slammed into Reinforced Barrier. 02436_ Destabilizing: Core damaged (-20). 02436_ Destabilizing: System corrupted (+2). 02437_ YM-PJM(z) pulls a Mak. Shrapnel Gun out of the Twisted Machinery. 02437_ Slammed into Reinforced Barrier. 02437_ Destabilizing: Core damaged (-12). Map ----- +----------------------------------------------------+ | ?????????????????????????????????????????????? | | ?????????????????????????????????????????????? | | ?????????????????????????????????????????????? | | ?????????????????????????????????????????????? | | ?????????????????????????????????????###?????? | | ???????????????????????????????????### ###???? | | ????????????????????????????######?# ]#???? | | ???????????????????????????##!#"!### ]#???? | | ???????????????????????????#!!! !!###" "##???? | | ????????????????????????????# ! !### ##### | | ????????????????????????????## !"### ""# | | ???????????????????????????##" # ### "" | | ???????????????????????????#"# " "## """ " | | ???????????????????????????# # # """ " | | ??????????????????????????## """ "" | | ??????????????????????##??#""" | | ????????????????????###"###""" | | ?????????????????????""#"#"""" | | ??????????????????????#"""###""" " | | ??????????????????????" ""#"""" | | ??????????????????????# "#"""" | | ?????????????????????## M"""""" """" | | ?????????????????????" sMM M "" " | | ?????????????????????" g z "" """ "" | | ?????????????????##### l s """" """""""" "" | | ?????????????????#" @z z M"""" """"""" "" | | ???????????????#""# ##" ""####" " | | ??????????????????# ##"" "##??#""" " | | ??????????????????# ####"""" "###?#"""""" | | ??????????????????#######??##""" """#?#"#""" | | ????????????????????????????##"" """###""""" | | ?????????????????????????????##" """##""" | | ??????????????????????????????#" """#"" | | ?????????????????????????????##" ""#"" | | ?????????????????????????????#""" """"" | | ?????????????????????????????##"" """"" " | | ????????????????????????????###""" """"" " | | ?????????????????????????####""""" | | ?????????????????????????#""""""" | | ??????????????????????????#"" """ | | ?????????????????????????##" """ | | ?????????????????????????#"" """" | | ?????????????????????#####"" """" | | ????????????????????## "#" " """" """"" | | ???????????????????## """"" """#"" | | ???????????????????# ""# """" """""" | | ???????????????????## ### """ """" " | | ????????????????????# ##" "" "#" | | ????????????????????## ##""" """"" | | ?????????????????????######"" """"""""" | +----------------------------------------------------+ Best States ------------- Heat Dissipation 28 Energy Generation 5 Energy Capacity 100 Matter Stores 300 Matter Capacity 300 Sight Range 23 Terrain Scan Density 10 Evasion (%) 63 Targeting Accuracy 12 Offensive Hacking 16 Item Schematics ----------------- Spear | -7/Zion | Archive Imp. System Shield | -7/Zion | Archive Gauss Rifle | -7/Zion | Archive Imp. System Restoration Module | -7/Zion | Archive Imp. Shield Generator | -7/Zion | Archive Power Sword | -7/Zion | Archive Arm. Huge Wheel | -7/Zion | Archive Imp. Transmission Jammer | -7/Zion | Archive Imp. Focal Shield | -7/Zion | Archive Hvy. Missile Launcher | -7/Zion | Archive Drone Bay | -7/Zion | Archive Imp. Target Analyzer | -7/Zion | Archive Imp. EM Pulse Cannon | -7/Zion | Archive Imp. Medium Treads | -7/Zion | Archive System Restoration Module | -7/Zion | Archive Robot Schematics ------------------ O-24 Administrator | -7/Zion | Archive W-25 Informer | -7/Zion | Archive T-07 Excavator | -7/Zion | Archive Fabricated ------------ Nothing Alien Tech Used ----------------- None Achievements -------------- None Challenges ------------ None Game ------ Seed CouplerSegregatorGenerator Manual? 0 Play Time 00:20:54 Cumulative 21.2 hours Start 2024.08.12 @ 13:09:10 End 2024.08.12 @ 13:32:37 Sessions 1 Manual Loads 0 Difficulty Rogue Special Mode None Game No. 102 Rogue 102 Adventurer 0 Explorer 0 Win Type - Total 0 Types 0/0/0/0/0/0/0/0/0 Lore% 33 Gallery% 25 Achievement% 32 Wizard Run 0 Options --------- Layout 0 ASCII 0 Keyboard 0 Movement Arrows Keybinds 0 Fullscreen 2 Font 18/Terminus Map View 76x50 Zoom Use 0% Tactical HUD 1 Map Filters NONE Filters NONE Steam 1 RUN: 70bbd291-8831-4b24-a8af-c2e5755c41d6